[Event "Late Titled Tuesday Blitz February 8 2022"]
[White "Yang, Qindong"]
[Black "Mladenovic, Stefan"]
[WhiteFideId "8603758"]
[BlackFideId "942227"]
[WhiteElo "2101"]
[BlackElo "2355"]
[Result "0-1"]
[Round "07"]
[TimeControl "180+1"]
[Date "2022.02.09"]
[WhiteClock "0:00:03"]
[BlackClock "0:01:02"]

1. d4 {[%clk 0:02:55]}  Nf6 {[%clk 0:02:59]} 2. c4 {[%clk 0:02:53]}  e6 {[%clk 0:02:59]} 3. g3 {[%clk 0:02:52]}  d5 {[%clk 0:02:58]} 4. Bg2 {[%clk 0:02:52]}  Be7 {[%clk 0:02:59]} 5. Nf3 {[%clk 0:02:53]}  O-O {[%clk 0:02:59]} 6. O-O {[%clk 0:02:54]}  dxc4 {[%clk 0:03:00]} 7. Qc2 {[%clk 0:02:54]}  b6 {[%clk 0:03:00]} 8. Ne5 {[%clk 0:02:47]}  Qxd4 {[%clk 0:02:59]} 9. Bxa8 {[%clk 0:02:45]}  Qxe5 {[%clk 0:03:00]} 10. Bg2 {[%clk 0:02:44]}  Ba6 {[%clk 0:02:58]} 11. Nd2 {[%clk 0:02:40]}  Qc5 {[%clk 0:02:54]} 12. Ne4 {[%clk 0:02:22]}  Nxe4 {[%clk 0:02:53]} 13. Bxe4 {[%clk 0:02:23]}  f5 {[%clk 0:02:52]} 14. Be3 {[%clk 0:02:21]}  Qb4 {[%clk 0:02:38]} 15. Bg2 {[%clk 0:02:18]}  Bf6 {[%clk 0:02:37]} 16. Rab1 {[%clk 0:02:15]}  Nd7 {[%clk 0:02:32]} 17. Rfd1 {[%clk 0:02:09]}  Ne5 {[%clk 0:02:14]} 18. Bd4 {[%clk 0:01:58]}  Ng4 {[%clk 0:02:02]} 19. Bxf6 {[%clk 0:01:45]}  Nxf6 {[%clk 0:02:03]} 20. Qc3 {[%clk 0:01:16]}  Qc5 {[%clk 0:01:56]} 21. Qd4 {[%clk 0:01:14]}  Qe7 {[%clk 0:01:51]} 22. Qe5 {[%clk 0:01:09]}  Ng4 {[%clk 0:01:50]} 23. Qd4 {[%clk 0:01:06]}  e5 {[%clk 0:01:46]} 24. Qd5+ {[%clk 0:00:59]}  Kh8 {[%clk 0:01:45]} 25. Qd7 {[%clk 0:00:59]}  Qc5 {[%clk 0:01:42]} 26. e3 {[%clk 0:00:58]}  Nf6 {[%clk 0:01:33]} 27. Qxf5 {[%clk 0:00:51]}  Bc8 {[%clk 0:01:33]} 28. Qc2 {[%clk 0:00:42]}  Ng4 {[%clk 0:01:31]} 29. Rd2 {[%clk 0:00:38]}  Bf5 {[%clk 0:01:25]} 30. Be4 {[%clk 0:00:38]}  Nxe3 {[%clk 0:01:17]} 31. fxe3 {[%clk 0:00:34]}  Qxe3+ {[%clk 0:01:17]} 32. Rf2 {[%clk 0:00:34]}  Bxe4 {[%clk 0:01:15]} 33. Qd2 {[%clk 0:00:06]}  Qxf2+ {[%clk 0:01:11]} 34. Qxf2 {[%clk 0:00:06]}  Rxf2 {[%clk 0:01:12]} 35. Re1 {[%clk 0:00:05]}  Rg2+ {[%clk 0:01:10]} 36. Kf1 {[%clk 0:00:06]}  Bc6 {[%clk 0:01:06]} 37. Rxe5 {[%clk 0:00:06]}  Rxb2 {[%clk 0:01:04]} 38. Re6 {[%clk 0:00:03]}  Bb5 {[%clk 0:01:03]} 39. Re5 {[%clk 0:00:02]}  h6 {[%clk 0:01:02]} 40. Ke1 {[%clk 0:00:03]}  c3 {[%clk 0:01:02]} 0-1


[Site "https://www.chess.com"]

[Event "Late Titled Tuesday Blitz February 8 2022"]
[White "Yuan, Qingyu"]
[Black "Nihal Sarin"]
[WhiteFideId "8609772"]
[BlackFideId "25092340"]
[WhiteElo "2359"]
[BlackElo "2705"]
[Result "0-1"]
[Round "07"]
[TimeControl "180+1"]
[Date "2022.02.08"]
[WhiteClock "0:00:05"]
[BlackClock "0:02:22"]

1. Nf3 {[%clk 0:03:00]}  Nf6 {[%clk 0:03:00]} 2. g3 {[%clk 0:03:01]}  d5 {[%clk 0:02:59]} 3. Bg2 {[%clk 0:03:01]}  Nc6 {[%clk 0:03:00]} 4. d4 {[%clk 0:03:00]}  Bf5 {[%clk 0:03:00]} 5. O-O {[%clk 0:03:00]}  Nb4 {[%clk 0:03:00]} 6. Na3 {[%clk 0:03:01]}  e6 {[%clk 0:03:01]} 7. c3 {[%clk 0:03:01]}  Nc6 {[%clk 0:03:01]} 8. Nc2 {[%clk 0:02:53]}  h6 {[%clk 0:03:00]} 9. b3 {[%clk 0:02:37]}  Bd6 {[%clk 0:02:59]} 10. c4 {[%clk 0:02:30]}  O-O {[%clk 0:02:59]} 11. Bb2 {[%clk 0:02:29]}  a5 {[%clk 0:02:59]} 12. Ne5 {[%clk 0:02:15]}  Be4 {[%clk 0:02:53]} 13. Bxe4 {[%clk 0:01:57]}  Nxe4 {[%clk 0:02:54]} 14. f3 {[%clk 0:01:54]}  Nf6 {[%clk 0:02:49]} 15. Nxc6 {[%clk 0:01:53]}  bxc6 {[%clk 0:02:50]} 16. Qd3 {[%clk 0:01:45]}  Re8 {[%clk 0:02:45]} 17. e4 {[%clk 0:01:43]}  e5 {[%clk 0:02:45]} 18. dxe5 {[%clk 0:01:09]}  dxe4 {[%clk 0:02:44]} 19. fxe4 {[%clk 0:01:04]}  Bxe5 {[%clk 0:02:44]} 20. Qxd8 {[%clk 0:01:01]}  Raxd8 {[%clk 0:02:45]} 21. Bxe5 {[%clk 0:00:54]}  Rxe5 {[%clk 0:02:46]} 22. Rad1 {[%clk 0:00:43]}  Rxd1 {[%clk 0:02:46]} 23. Rxd1 {[%clk 0:00:44]}  Rxe4 {[%clk 0:02:46]} 24. Nd4 {[%clk 0:00:39]}  c5 {[%clk 0:02:44]} 25. Nb5 {[%clk 0:00:36]}  Re2 {[%clk 0:02:44]} 26. Nxc7 {[%clk 0:00:34]}  Rxa2 {[%clk 0:02:43]} 27. Na6 {[%clk 0:00:34]}  Ne4 {[%clk 0:02:39]} 28. Rd5 {[%clk 0:00:23]}  Nd2 {[%clk 0:02:39]} 29. Nxc5 {[%clk 0:00:19]}  Nf3+ {[%clk 0:02:40]} 30. Kf1 {[%clk 0:00:19]}  Nxh2+ {[%clk 0:02:40]} 31. Kg1 {[%clk 0:00:20]}  Nf3+ {[%clk 0:02:40]} 32. Kf1 {[%clk 0:00:20]}  g6 {[%clk 0:02:34]} 33. Ne4 {[%clk 0:00:16]}  f5 {[%clk 0:02:34]} 34. Nd6 {[%clk 0:00:14]}  Nd2+ {[%clk 0:02:34]} 35. Ke1 {[%clk 0:00:13]}  Nxb3 {[%clk 0:02:35]} 36. Rb5 {[%clk 0:00:11]}  Nd4 {[%clk 0:02:33]} 37. Rb7 {[%clk 0:00:08]}  Nf3+ {[%clk 0:02:30]} 38. Kf1 {[%clk 0:00:07]}  a4 {[%clk 0:02:31]} 39. c5 {[%clk 0:00:04]}  Rc2 {[%clk 0:02:31]} 40. Ne8 {[%clk 0:00:04]}  a3 {[%clk 0:02:26]} 41. Nf6+ {[%clk 0:00:03]}  Kf8 {[%clk 0:02:26]} 42. Ra7 {[%clk 0:00:02]}  a2 {[%clk 0:02:26]} 43. c6 {[%clk 0:00:01]}  Rc1+ {[%clk 0:02:24]} 44. Kf2 {[%clk 0:00:01]}  a1=Q {[%clk 0:02:25]} 45. Rxa1 {[%clk 0:00:01]}  Rxa1 {[%clk 0:02:26]} 46. c7 {[%clk 0:00:02]}  Rc1 {[%clk 0:02:25]} 47. Kxf3 {[%clk 0:00:02]}  Rxc7 {[%clk 0:02:25]} 48. Nd5 {[%clk 0:00:02]}  Rc5 {[%clk 0:02:24]} 49. Nf4 {[%clk 0:00:02]}  Kf7 {[%clk 0:02:25]} 50. Nd3 {[%clk 0:00:02]}  Rc3 {[%clk 0:02:25]} 51. Ke2 {[%clk 0:00:02]}  Rxd3 {[%clk 0:02:26]} 52. Kxd3 {[%clk 0:00:03]}  Kf6 {[%clk 0:02:27]} 53. Ke3 {[%clk 0:00:04]}  Kg5 {[%clk 0:02:28]} 54. Kf3 {[%clk 0:00:04]}  h5 {[%clk 0:02:20]} 55. Kg2 {[%clk 0:00:04]}  Kg4 {[%clk 0:02:21]} 56. Kh2 {[%clk 0:00:05]}  h4 {[%clk 0:02:21]} 57. gxh4 {[%clk 0:00:05]}  Kxh4 {[%clk 0:02:22]} 0-1


[Site "https://www.chess.com"]

[Event "Late Titled Tuesday Blitz February 8 2022"]
[White "Zhigalko, Sergei"]
[Black "Xiong, Jeffery"]
[WhiteFideId "13502956"]
[BlackFideId "2047640"]
[WhiteElo "2662"]
[BlackElo "2727"]
[Result "0-1"]
[Round "07"]
[TimeControl "180+1"]
[Date "2022.02.08"]
[WhiteClock "0:00:35"]
[BlackClock "0:01:18"]

1. e4 {[%clk 0:03:00]}  c5 {[%clk 0:03:00]} 2. Nf3 {[%clk 0:03:00]}  d6 {[%clk 0:03:00]} 3. d4 {[%clk 0:03:01]}  cxd4 {[%clk 0:03:00]} 4. Qxd4 {[%clk 0:03:01]}  Nc6 {[%clk 0:02:57]} 5. Bb5 {[%clk 0:03:02]}  a6 {[%clk 0:02:58]} 6. Bxc6+ {[%clk 0:03:02]}  bxc6 {[%clk 0:02:59]} 7. c4 {[%clk 0:03:02]}  e5 {[%clk 0:02:57]} 8. Qd3 {[%clk 0:03:03]}  Ne7 {[%clk 0:02:42]} 9. O-O {[%clk 0:02:58]}  Ng6 {[%clk 0:02:41]} 10. Rd1 {[%clk 0:02:56]}  Be7 {[%clk 0:02:37]} 11. Nc3 {[%clk 0:02:54]}  O-O {[%clk 0:02:20]} 12. b3 {[%clk 0:02:35]}  f5 {[%clk 0:02:20]} 13. Ba3 {[%clk 0:02:06]}  Nf4 {[%clk 0:02:20]} 14. Qe3 {[%clk 0:02:03]}  Qe8 {[%clk 0:02:17]} 15. Kh1 {[%clk 0:01:38]}  Qg6 {[%clk 0:02:09]} 16. Rg1 {[%clk 0:01:36]}  fxe4 {[%clk 0:01:38]} 17. Nxe5 {[%clk 0:01:35]}  Qe8 {[%clk 0:01:23]} 18. Qxe4 {[%clk 0:00:51]}  dxe5 {[%clk 0:01:21]} 19. Bxe7 {[%clk 0:00:52]}  Qxe7 {[%clk 0:01:22]} 20. Rae1 {[%clk 0:00:52]}  Bf5 {[%clk 0:01:21]} 21. Qxe5 {[%clk 0:00:49]}  Nd3 {[%clk 0:01:18]} 22. Qxe7 {[%clk 0:00:35]}  Nxf2# {[%clk 0:01:18]} 0-1


[Site "https://www.chess.com"]

[Event "Late Titled Tuesday Blitz February 8 2022"]
[White "Al Hosani, Omran"]
[Black "Dourerassou, Jonathan"]
[WhiteFideId "9308733"]
[BlackFideId "628050"]
[WhiteElo "2246"]
[BlackElo "2513"]
[Result "0-1"]
[Round "08"]
[TimeControl "180+1"]
[Date "2022.02.08"]
[WhiteClock "0:00:01"]
[BlackClock "0:01:12"]

1. d4 {[%clk 0:03:00]}  d6 {[%clk 0:02:59]} 2. e4 {[%clk 0:02:58]}  g6 {[%clk 0:02:59]} 3. Nf3 {[%clk 0:02:58]}  Bg7 {[%clk 0:03:00]} 4. c3 {[%clk 0:02:57]}  Nd7 {[%clk 0:02:58]} 5. Bd3 {[%clk 0:02:57]}  c5 {[%clk 0:02:59]} 6. O-O {[%clk 0:02:57]}  Ngf6 {[%clk 0:02:57]} 7. Re1 {[%clk 0:02:56]}  O-O {[%clk 0:02:57]} 8. h3 {[%clk 0:02:56]}  a6 {[%clk 0:02:56]} 9. Nbd2 {[%clk 0:02:56]}  e5 {[%clk 0:02:55]} 10. Nf1 {[%clk 0:02:54]}  b5 {[%clk 0:02:55]} 11. a4 {[%clk 0:02:52]}  c4 {[%clk 0:02:55]} 12. Bb1 {[%clk 0:02:50]}  Bb7 {[%clk 0:02:55]} 13. Ng3 {[%clk 0:02:45]}  Re8 {[%clk 0:02:54]} 14. d5 {[%clk 0:02:43]}  Nc5 {[%clk 0:02:54]} 15. Bc2 {[%clk 0:02:41]}  h6 {[%clk 0:02:51]} 16. Be3 {[%clk 0:02:39]}  Qc7 {[%clk 0:02:49]} 17. Qd2 {[%clk 0:02:36]}  Kh7 {[%clk 0:02:49]} 18. Nh2 {[%clk 0:02:28]}  Bc8 {[%clk 0:02:48]} 19. axb5 {[%clk 0:02:22]}  Bd7 {[%clk 0:02:38]} 20. Bxc5 {[%clk 0:02:13]}  Qxc5 {[%clk 0:02:39]} 21. bxa6 {[%clk 0:02:13]}  Qb6 {[%clk 0:02:39]} 22. Ba4 {[%clk 0:02:04]}  Rxa6 {[%clk 0:02:34]} 23. Bxd7 {[%clk 0:02:03]}  Nxd7 {[%clk 0:02:35]} 24. Rxa6 {[%clk 0:02:02]}  Qxa6 {[%clk 0:02:36]} 25. Ng4 {[%clk 0:02:01]}  Ra8 {[%clk 0:02:32]} 26. Ne3 {[%clk 0:02:01]}  Qb5 {[%clk 0:02:32]} 27. h4 {[%clk 0:01:55]}  h5 {[%clk 0:02:31]} 28. Qe2 {[%clk 0:01:51]}  Ra4 {[%clk 0:02:28]} 29. b4 {[%clk 0:01:40]}  Nb6 {[%clk 0:02:24]} 30. Ngf5 {[%clk 0:01:32]}  Bf8 {[%clk 0:02:18]} 31. Qf3 {[%clk 0:01:20]}  Qd7 {[%clk 0:02:14]} 32. Ng3 {[%clk 0:01:16]}  Ra3 {[%clk 0:02:08]} 33. Nc2 {[%clk 0:01:13]}  Ra2 {[%clk 0:02:02]} 34. Re2 {[%clk 0:01:13]}  Bh6 {[%clk 0:01:57]} 35. Ne3 {[%clk 0:00:57]}  Ra1+ {[%clk 0:01:55]} 36. Nef1 {[%clk 0:00:56]}  Bf4 {[%clk 0:01:53]} 37. Rc2 {[%clk 0:00:37]}  Qa4 {[%clk 0:01:50]} 38. Qe2 {[%clk 0:00:30]}  Qb3 {[%clk 0:01:43]} 39. b5 {[%clk 0:00:13]}  Qxb5 {[%clk 0:01:41]} 40. Rb2 {[%clk 0:00:14]}  Qc5 {[%clk 0:01:41]} 41. Nxh5 {[%clk 0:00:10]}  gxh5 {[%clk 0:01:37]} 42. Qxh5+ {[%clk 0:00:11]}  Kg7 {[%clk 0:01:37]} 43. Qg4+ {[%clk 0:00:11]}  Kf8 {[%clk 0:01:37]} 44. Qh5 {[%clk 0:00:10]}  Qa5 {[%clk 0:01:21]} 45. Qh8+ {[%clk 0:00:08]}  Ke7 {[%clk 0:01:21]} 46. g3 {[%clk 0:00:03]}  Rxf1+ {[%clk 0:01:19]} 47. Kxf1 {[%clk 0:00:03]}  Qa1+ {[%clk 0:01:20]} 48. Kg2 {[%clk 0:00:04]}  Qxb2 {[%clk 0:01:20]} 49. gxf4 {[%clk 0:00:04]}  exf4 {[%clk 0:01:20]} 50. e5 {[%clk 0:00:04]}  Nxd5 {[%clk 0:01:18]} 51. exd6+ {[%clk 0:00:04]}  Kxd6 {[%clk 0:01:19]} 52. Qd8+ {[%clk 0:00:05]}  Ke6 {[%clk 0:01:19]} 53. Qe8+ {[%clk 0:00:05]}  Ne7 {[%clk 0:01:16]} 54. h5 {[%clk 0:00:04]}  Qxc3 {[%clk 0:01:15]} 55. h6 {[%clk 0:00:05]}  f3+ {[%clk 0:01:15]} 56. Kg3 {[%clk 0:00:04]}  Qe5+ {[%clk 0:01:15]} 57. Kxf3 {[%clk 0:00:05]}  Qh5+ {[%clk 0:01:14]} 58. Kg2 {[%clk 0:00:04]}  Qg6+ {[%clk 0:01:14]} 59. Kf1 {[%clk 0:00:04]}  Qxh6 {[%clk 0:01:14]} 60. Qb5 {[%clk 0:00:03]}  Qh1+ {[%clk 0:01:13]} 61. Ke2 {[%clk 0:00:03]}  Qd5 {[%clk 0:01:13]} 62. Qa6+ {[%clk 0:00:03]}  Nc6 {[%clk 0:01:13]} 63. Qc8+ {[%clk 0:00:03]}  Kf6 {[%clk 0:01:13]} 64. Qh8+ {[%clk 0:00:03]}  Ke7 {[%clk 0:01:12]} 65. Qh4+ {[%clk 0:00:02]}  Kd6 {[%clk 0:01:12]} 66. Qf6+ {[%clk 0:00:01]}  Qe6+ {[%clk 0:01:12]} 0-1


[Site "https://www.chess.com"]

[Event "Late Titled Tuesday Blitz February 8 2022"]
[White "Al-Tarboush, Ward"]
[Black "Lin, Dachey"]
[WhiteFideId "7601450"]
[BlackFideId "2029650"]
[WhiteElo "2276"]
[BlackElo "2734"]
[Result "0-1"]
[Round "08"]
[TimeControl "180+1"]
[Date "2022.02.08"]
[WhiteClock "0:00:26"]
[BlackClock "0:00:30"]

1. e4 {[%clk 0:03:00]}  g6 {[%clk 0:03:00]} 2. d4 {[%clk 0:03:00]}  Bg7 {[%clk 0:03:01]} 3. Nf3 {[%clk 0:03:00]}  c6 {[%clk 0:03:02]} 4. c3 {[%clk 0:03:00]}  d5 {[%clk 0:03:03]} 5. e5 {[%clk 0:02:59]}  Bg4 {[%clk 0:03:03]} 6. Be2 {[%clk 0:02:58]}  e6 {[%clk 0:03:03]} 7. O-O {[%clk 0:02:58]}  Nd7 {[%clk 0:03:03]} 8. Nbd2 {[%clk 0:02:57]}  Ne7 {[%clk 0:03:03]} 9. h3 {[%clk 0:02:56]}  Bxf3 {[%clk 0:03:04]} 10. Nxf3 {[%clk 0:02:57]}  O-O {[%clk 0:03:05]} 11. Be3 {[%clk 0:02:57]}  c5 {[%clk 0:03:04]} 12. Qd2 {[%clk 0:02:56]}  Nc6 {[%clk 0:03:04]} 13. Nh2 {[%clk 0:02:54]}  Rc8 {[%clk 0:03:03]} 14. Ng4 {[%clk 0:02:52]}  h5 {[%clk 0:03:02]} 15. Nh2 {[%clk 0:02:52]}  cxd4 {[%clk 0:02:54]} 16. cxd4 {[%clk 0:02:52]}  Qb6 {[%clk 0:02:45]} 17. g4 {[%clk 0:02:42]}  hxg4 {[%clk 0:02:24]} 18. Nxg4 {[%clk 0:02:42]}  Qb4 {[%clk 0:02:21]} 19. Qd1 {[%clk 0:02:43]}  f5 {[%clk 0:02:19]} 20. exf6 {[%clk 0:02:34]}  Nxf6 {[%clk 0:02:09]} 21. Nxf6+ {[%clk 0:02:34]}  Bxf6 {[%clk 0:02:09]} 22. Bg4 {[%clk 0:02:34]}  Rce8 {[%clk 0:02:05]} 23. Re1 {[%clk 0:02:34]}  Bxd4 {[%clk 0:02:01]} 24. a3 {[%clk 0:02:31]}  Qb6 {[%clk 0:01:59]} 25. Qd3 {[%clk 0:02:29]}  Rf6 {[%clk 0:01:56]} 26. Rad1 {[%clk 0:02:23]}  Bxe3 {[%clk 0:01:49]} 27. Rxe3 {[%clk 0:02:24]}  Qxb2 {[%clk 0:01:47]} 28. Rf3 {[%clk 0:02:12]}  Ne5 {[%clk 0:01:45]} 29. Qe3 {[%clk 0:01:34]}  Nxf3+ {[%clk 0:01:42]} 30. Bxf3 {[%clk 0:01:35]}  Ref8 {[%clk 0:01:42]} 31. Bg4 {[%clk 0:01:35]}  Rxf2 {[%clk 0:01:33]} 32. Qxe6+ {[%clk 0:01:35]}  Kg7 {[%clk 0:01:33]} 33. Qxd5 {[%clk 0:01:29]}  R8f6 {[%clk 0:01:04]} 34. Qe4 {[%clk 0:01:20]}  Qb6 {[%clk 0:00:48]} 35. Rd7+ {[%clk 0:01:15]}  Rf7 {[%clk 0:00:46]} 36. Qe5+ {[%clk 0:00:34]}  Rf6+ {[%clk 0:00:40]} 37. Kh1 {[%clk 0:00:35]}  Rxd7 {[%clk 0:00:29]} 38. Bxd7 {[%clk 0:00:33]}  Qb1+ {[%clk 0:00:29]} 39. Kg2 {[%clk 0:00:30]}  Qc2+ {[%clk 0:00:30]} 40. Kg3 {[%clk 0:00:27]}  Qd3+ {[%clk 0:00:30]} 41. Kh4 {[%clk 0:00:26]}  Qxd7 {[%clk 0:00:30]} 0-1


[Site "https://www.chess.com"]

[Event "Late Titled Tuesday Blitz February 8 2022"]
[White "Aradhya, Garg"]
[Black "Kopylov, Alexander A."]
[WhiteFideId "25006746"]
[BlackFideId "4164857"]
[WhiteElo "2169"]
[BlackElo "2436"]
[Result "0-1"]
[Round "08"]
[TimeControl "180+1"]
[Date "2022.02.08"]
[WhiteClock "0:00:15"]
[BlackClock "0:00:20"]

1. d4 {[%clk 0:02:56]}  Nf6 {[%clk 0:02:59]} 2. c4 {[%clk 0:02:56]}  d6 {[%clk 0:03:00]} 3. Nc3 {[%clk 0:02:55]}  e5 {[%clk 0:03:00]} 4. Nf3 {[%clk 0:02:55]}  Nbd7 {[%clk 0:03:00]} 5. e4 {[%clk 0:02:54]}  Be7 {[%clk 0:03:00]} 6. g3 {[%clk 0:02:54]}  O-O {[%clk 0:03:00]} 7. Bg2 {[%clk 0:02:55]}  c6 {[%clk 0:02:59]} 8. O-O {[%clk 0:02:55]}  Qe8 {[%clk 0:02:59]} 9. Re1 {[%clk 0:02:54]}  Bd8 {[%clk 0:02:59]} 10. c5 {[%clk 0:02:52]}  exd4 {[%clk 0:02:52]} 11. Nxd4 {[%clk 0:02:52]}  Nxc5 {[%clk 0:02:51]} 12. Bf4 {[%clk 0:02:52]}  Bc7 {[%clk 0:02:47]} 13. b4 {[%clk 0:02:44]}  Ne6 {[%clk 0:02:45]} 14. Nxe6 {[%clk 0:02:44]}  Qxe6 {[%clk 0:02:42]} 15. Rc1 {[%clk 0:02:44]}  Nd7 {[%clk 0:02:37]} 16. Nb5 {[%clk 0:02:31]}  Bb6 {[%clk 0:02:21]} 17. Nxd6 {[%clk 0:02:29]}  Ne5 {[%clk 0:02:18]} 18. Rc2 {[%clk 0:01:44]}  Ng6 {[%clk 0:02:04]} 19. Be3 {[%clk 0:01:41]}  Ne5 {[%clk 0:01:24]} 20. f4 {[%clk 0:01:32]}  Ng4 {[%clk 0:00:48]} 21. Bxb6 {[%clk 0:01:21]}  axb6 {[%clk 0:00:48]} 22. f5 {[%clk 0:01:20]}  Qh6 {[%clk 0:00:48]} 23. Qxg4 {[%clk 0:00:48]}  Qxd6 {[%clk 0:00:47]} 24. e5 {[%clk 0:00:48]}  Qd3 {[%clk 0:00:46]} 25. Rf2 {[%clk 0:00:47]}  g6 {[%clk 0:00:37]} 26. Ref1 {[%clk 0:00:39]}  Kh8 {[%clk 0:00:27]} 27. Qg5 {[%clk 0:00:39]}  Bxf5 {[%clk 0:00:26]} 28. Qf6+ {[%clk 0:00:39]}  Kg8 {[%clk 0:00:27]} 29. Rxf5 {[%clk 0:00:39]}  gxf5 {[%clk 0:00:27]} 30. Qg5+ {[%clk 0:00:39]}  Kh8 {[%clk 0:00:27]} 31. Qf6+ {[%clk 0:00:39]}  Kg8 {[%clk 0:00:27]} 32. Rxf5 {[%clk 0:00:23]}  Qe3+ {[%clk 0:00:27]} 33. Kh1 {[%clk 0:00:22]}  h6 {[%clk 0:00:25]} 34. Rh5 {[%clk 0:00:20]}  Rxa2 {[%clk 0:00:20]} 35. Rxh6 {[%clk 0:00:18]}  Ra1+ {[%clk 0:00:20]} 36. Bf1 {[%clk 0:00:18]}  Rxf1+ {[%clk 0:00:20]} 37. Qxf1 {[%clk 0:00:18]}  Qxh6 {[%clk 0:00:21]} 38. Qf5 {[%clk 0:00:17]}  Qe6 {[%clk 0:00:22]} 39. Qg5+ {[%clk 0:00:17]}  Qg6 {[%clk 0:00:23]} 40. Qe7 {[%clk 0:00:17]}  Kg7 {[%clk 0:00:22]} 41. Qxb7 {[%clk 0:00:16]}  Rh8 {[%clk 0:00:22]} 42. Qxc6 {[%clk 0:00:15]}  Qxc6+ {[%clk 0:00:20]} 0-1


[Site "https://www.chess.com"]

[Event "Late Titled Tuesday Blitz February 8 2022"]
[White "Ardila, Oscar Humberto"]
[Black "Terletsky, Oleg"]
[WhiteFideId "4404742"]
[BlackFideId "14116774"]
[WhiteElo "1898"]
[BlackElo "2050"]
[Result "0-1"]
[Round "08"]
[TimeControl "180+1"]
[Date "2022.02.09"]
[WhiteClock "0:00:49"]
[BlackClock "0:01:16"]

1. d4 {[%clk 0:02:57]}  Nf6 {[%clk 0:02:58]} 2. Nf3 {[%clk 0:02:52]}  g6 {[%clk 0:02:58]} 3. c4 {[%clk 0:02:52]}  Bg7 {[%clk 0:02:59]} 4. Nc3 {[%clk 0:02:52]}  d6 {[%clk 0:02:59]} 5. e4 {[%clk 0:02:51]}  O-O {[%clk 0:02:59]} 6. Be2 {[%clk 0:02:50]}  e5 {[%clk 0:03:00]} 7. d5 {[%clk 0:02:50]}  a5 {[%clk 0:02:59]} 8. O-O {[%clk 0:02:49]}  Na6 {[%clk 0:02:58]} 9. Bg5 {[%clk 0:02:49]}  h6 {[%clk 0:02:58]} 10. Bxf6 {[%clk 0:02:49]}  Bxf6 {[%clk 0:02:58]} 11. Qc2 {[%clk 0:02:49]}  Bg7 {[%clk 0:02:52]} 12. a3 {[%clk 0:02:41]}  Bd7 {[%clk 0:02:52]} 13. b3 {[%clk 0:02:40]}  f5 {[%clk 0:02:46]} 14. Rab1 {[%clk 0:02:36]}  Nc5 {[%clk 0:02:43]} 15. Nd2 {[%clk 0:02:33]}  h5 {[%clk 0:02:17]} 16. b4 {[%clk 0:02:32]}  axb4 {[%clk 0:02:15]} 17. axb4 {[%clk 0:02:32]}  Na4 {[%clk 0:02:14]} 18. exf5 {[%clk 0:02:25]}  Nxc3 {[%clk 0:01:56]} 19. Qxc3 {[%clk 0:02:22]}  gxf5 {[%clk 0:01:56]} 20. Bxh5 {[%clk 0:02:17]}  Qg5 {[%clk 0:01:53]} 21. Be2 {[%clk 0:02:09]}  e4 {[%clk 0:01:51]} 22. Qe3 {[%clk 0:02:00]}  Qxe3 {[%clk 0:01:40]} 23. fxe3 {[%clk 0:02:00]}  Ra2 {[%clk 0:01:40]} 24. Rfd1 {[%clk 0:01:42]}  Bc3 {[%clk 0:01:34]} 25. Nxe4 {[%clk 0:00:53]}  fxe4 {[%clk 0:01:31]} 26. Bf1 {[%clk 0:00:54]}  Bd2 {[%clk 0:01:25]} 27. Rb3 {[%clk 0:00:52]}  Ba4 {[%clk 0:01:20]} 28. Rxd2 {[%clk 0:00:48]}  Rxd2 {[%clk 0:01:19]} 29. Ra3 {[%clk 0:00:49]}  Rd1 {[%clk 0:01:16]} 0-1


[Site "https://www.chess.com"]

[Event "Late Titled Tuesday Blitz February 8 2022"]
[White "Avazkhonov, Alikhon"]
[Black "Medeiros Jr, Francisco De Assis"]
[WhiteFideId "14208504"]
[BlackFideId "2114267"]
[WhiteElo "1739"]
[BlackElo "1998"]
[Result "0-1"]
[Round "08"]
[TimeControl "180+1"]
[Date "2022.02.09"]
[WhiteClock "0:00:01"]
[BlackClock "0:00:29"]

1. c4 {[%clk 0:03:00]}  a6 {[%clk 0:02:55]} 2. Nc3 {[%clk 0:02:59]}  Nf6 {[%clk 0:02:55]} 3. g3 {[%clk 0:03:00]}  c6 {[%clk 0:02:51]} 4. Bg2 {[%clk 0:03:00]}  d5 {[%clk 0:02:51]} 5. d4 {[%clk 0:02:54]}  e6 {[%clk 0:02:33]} 6. Nf3 {[%clk 0:02:53]}  Nbd7 {[%clk 0:02:30]} 7. O-O {[%clk 0:02:52]}  dxc4 {[%clk 0:02:30]} 8. e4 {[%clk 0:02:52]}  Nb6 {[%clk 0:02:31]} 9. Qe2 {[%clk 0:02:40]}  Bb4 {[%clk 0:02:28]} 10. e5 {[%clk 0:02:34]}  Nfd5 {[%clk 0:02:23]} 11. Ne4 {[%clk 0:02:32]}  O-O {[%clk 0:02:20]} 12. Bg5 {[%clk 0:02:22]}  f6 {[%clk 0:02:03]} 13. exf6 {[%clk 0:02:01]}  gxf6 {[%clk 0:02:04]} 14. Bh6 {[%clk 0:01:59]}  Rf7 {[%clk 0:01:57]} 15. Nfd2 {[%clk 0:01:34]}  c3 {[%clk 0:01:49]} 16. bxc3 {[%clk 0:00:58]}  Nxc3 {[%clk 0:01:49]} 17. Qg4+ {[%clk 0:00:55]}  Kh8 {[%clk 0:01:46]} 18. Qh5 {[%clk 0:00:48]}  Qg8 {[%clk 0:01:32]} 19. Rae1 {[%clk 0:00:27]}  Nbd5 {[%clk 0:01:20]} 20. Nxc3 {[%clk 0:00:22]}  Bxc3 {[%clk 0:01:09]} 21. Re4 {[%clk 0:00:21]}  Qg6 {[%clk 0:00:58]} 22. Qh3 {[%clk 0:00:17]}  e5 {[%clk 0:00:38]} 23. Qh4 {[%clk 0:00:03]}  Bf5 {[%clk 0:00:35]} 24. dxe5 {[%clk 0:00:01]}  fxe5 {[%clk 0:00:29]} 0-1


[Site "https://www.chess.com"]